bitfinex/quotes_SOLUSD_20250206
["timestamp","ask_amount","ask_price","bid_price","bid_amount"]
[1738858633981,0.97422163,192.51,192.46,33.74574567]
[1738858634203,33.74574567,192.5,192.44,33.74574567]
[1738858634392,0.97440404,192.49,192.44,33.74574567]
[1738858634708,54.72014971,192.49,192.43,33.74574567]
[1738858635016,54.72014971,192.49,192.39,33.74574567]
[1738858635017,33.74574567,192.45,192.39,33.74574567]
[1738858635522,0.97440404,192.49,192.39,33.74574567]
[1738858635523,33.74574567,192.47,192.4,33.74574567]
[1738858635681,53.74574567,192.45,192.38,33.74574567]
[1738858635878,33.74574567,192.43,192.37,33.80874567]
[1738858636107,34.72043995,192.44,192.37,33.80874567]
[1738858636627,33.74574567,192.48,192.41,33.74574567]
[1738858637114,34.72044417,192.49,192.43,33.74574567]
[1738858637330,39.1573985,192.49,192.37,5.2613]
[1738858637489,0.12549,192.48,192.37,0.063]
[1738858637688,33.74574567,192.45,192.38,33.74574567]
[1738858637884,33.74574567,192.45,192.39,33.74574567]
[1738858638088,34.72038527,192.44,192.38,33.74574567]
[1738858638285,0.97466702,192.49,192.43,33.74574567]
[1738858638522,0.10968221,192.52,192.46,33.74574567]
[1738858638810,0.97432973,192.51,192.42,19.25380853]
[1738858639006,0.10968221,192.52,192.45,13.41184853]
[1738858639383,0.10968221,192.52,192.43,5.1966]
[1738858639818,5.30398221,192.52,192.43,5.1966]
[1738858640019,33.74574567,192.49,192.43,33.74574567]
[1738858640318,0.10968221,192.52,192.47,33.74574567]
[1738858640512,0.10968221,192.52,192.48,33.74574567]
[1738858640892,0.10968221,192.52,192.41,13.41184853]
[1738858640893,0.10968221,192.52,192.49,33.74574567]
[1738858641093,0.10968221,192.52,192.47,33.74574567]
[1738858641494,0.10968221,192.52,192.46,33.74574567]
[1738858642431,0.10968221,192.52,192.47,33.74574567]
[1738858642802,0.10968221,192.52,192.51,33.74574567]
[1738858644097,0.13968221,192.52,192.51,33.74574567]
[1738858644504,0.13968221,192.52,192.51,38.94024567]
[1738858646097,0.13968221,192.52,192.5,33.74574567]
[1738858646396,0.13968221,192.52,192.5,38.94034567]
[1738858646600,0.13968221,192.52,192.51,33.74574567]
[1738858647021,0.13968221,192.52,192.45,5.1961]
[1738858647222,33.74574567,192.5,192.44,7.1964]
[1738858647737,33.74574567,192.5,192.44,2.0]
[1738858648124,0.13968221,192.52,192.48,33.74574567]
[1738858648314,0.13968221,192.52,192.47,33.74574567]
[1738858648522,33.74574567,192.51,192.44,40.94194567]
[1738858648820,33.74574567,192.5,192.44,2.0]
[1738858649125,0.13968221,192.52,192.47,33.74574567]
[1738858649317,0.13968221,192.52,192.48,33.74574567]
[1738858649641,0.13968221,192.52,192.47,33.74574567]
[1738858649842,33.74574567,192.51,192.44,35.74574567]
[1738858650044,33.74574567,192.49,192.44,2.0]
[1738858650213,33.74574567,192.46,192.44,2.0]
[1738858650622,39.91633261,192.45,192.44,2.0]
[1738858651015,6.17058694,192.45,192.44,2.0]
[1738858651220,39.91633261,192.45,192.44,2.0]
[1738858651520,40.04182261,192.45,192.44,2.0]
[1738858652019,40.29280261,192.45,192.44,2.0]
[1738858652226,6.0529,192.41,192.37,0.063]
[1738858652422,53.74574567,192.38,192.37,0.063]
[1738858652614,33.74574567,192.39,192.37,0.063]
[1738858652817,6.0529,192.41,192.37,0.063]
[1738858653031,20.0,192.38,192.37,0.063]
[1738858653256,33.74574567,192.38,192.37,0.063]
[1738858654510,34.84633563,192.38,192.37,0.063]
[1738858654741,40.04433563,192.38,192.37,0.063]
[1738858655343,40.16982563,192.38,192.37,0.063]
[1738858656222,33.74574567,192.33,192.27,0.063]
[1738858656426,34.72103349,192.32,192.27,0.063]
[1738858657154,5.1999,192.31,192.27,0.063]
[1738858657319,34.72110937,192.3,192.27,0.063]
[1738858657819,0.9753637,192.3,192.27,0.063]
[1738858658349,20.0,192.28,192.27,0.063]
[1738858659021,20.97547552,192.28,192.27,0.063]
[1738858659325,26.17617552,192.28,192.27,0.063]
[1738858659525,39.07113567,192.32,192.27,0.063]
[1738858659746,0.97535246,192.31,192.27,0.063]
[1738858660148,20.0,192.28,192.27,0.063]
[1738858661253,20.0,192.29,192.27,0.063]
[1738858661545,5.1999,192.32,192.27,0.063]
[1738858661742,34.72096174,192.33,192.27,0.063]
[1738858662066,54.72096174,192.33,192.27,0.063]
[1738858662540,33.74574567,192.31,192.27,0.063]
[1738858662745,20.0,192.28,192.27,0.063]
[1738858663247,25.2007,192.28,192.27,0.063]
[1738858663560,20.0,192.28,192.27,0.063]
[1738858663867,5.2004,192.29,192.27,0.063]
[1738858664166,5.1997,192.32,192.27,0.063]
[1738858664761,20.0,192.32,192.28,33.74574567]
[1738858665065,20.0,192.32,192.27,0.063]
[1738858665264,53.74574567,192.32,192.27,0.063]
[1738858665466,58.94544567,192.32,192.27,0.063]
[1738858665766,34.72099197,192.35,192.28,33.74574567]
[1738858665947,5.1986,192.36,192.3,33.74574567]
[1738858666150,20.0,192.34,192.3,33.74574567]
[1738858666343,20.0,192.34,192.29,33.74574567]
[1738858666763,20.0,192.34,192.3,33.74574567]
[1738858667475,20.0,192.34,192.29,33.74574567]
[1738858667679,38.94484567,192.34,192.27,33.80874567]
[1738858667874,38.94484567,192.34,192.27,39.00974567]
[1738858668168,39.91961383,192.35,192.28,33.74574567]
[1738858668468,39.91961383,192.35,192.27,5.264]
[1738858668469,20.0,192.31,192.3,0.063]
[1738858668641,33.74574567,192.31,192.3,0.063]
[1738858669065,54.72105178,192.32,192.3,0.063]
[1738858669872,39.07113567,192.31,192.3,0.063]
[1738858670386,39.07113567,192.31,192.27,0.063]
[1738858670387,20.12549,192.28,192.27,0.063]
[1738858670563,54.84687659,192.28,192.27,0.063]
[1738858670752,68.50970512,192.28,192.27,0.0001]
[1738858671083,21.12549,192.25,192.24,0.0001]
[1738858671256,69.25900666,192.25,192.24,0.0001]
[1738858671973,74.46050666,192.25,192.24,0.0001]
[1738858672187,60.04865813,192.25,192.24,0.0001]
[1738858672483,73.81214071,192.25,192.24,0.0001]
[1738858673480,20.0,192.18,192.17,0.063]
[1738858673769,54.72182603,192.18,192.17,0.063]
[1738858674071,54.84731603,192.18,192.17,0.063]
[1738858675285,54.72182603,192.18,192.17,0.063]
[1738858675463,59.92522603,192.18,192.17,0.063]
[1738858675648,26.17948036,192.18,192.17,0.063]
[1738858675848,20.0,192.18,192.17,0.063]
[1738858676066,33.74574567,192.22,192.17,0.063]
[1738858676067,5.2023,192.22,192.17,0.063]
[1738858676352,33.74574567,192.18,192.17,0.063]
[1738858677351,38.94914567,192.18,192.17,0.063]
[1738858677692,5.2034,192.18,192.17,0.063]
[1738858679563,20.0,192.18,192.17,0.063]
[1738858679777,0.97586227,192.21,192.17,0.063]
[1738858679960,0.10065405,192.25,192.2,20.80854031]
[1738858679961,5.2018,192.24,192.2,20.80854031]
[1738858680155,5.2018,192.24,192.21,20.80854031]
[1738858680359,0.10065405,192.25,192.23,20.80854031]
[1738858680556,0.10065405,192.25,192.24,20.80854031]
[1738858680777,0.10304056,192.26,192.25,0.12549]
[1738858680952,0.10304056,192.26,192.25,20.80854031]
[1738858681355,5.30424056,192.26,192.25,20.80854031]
[1738858681555,0.10304056,192.26,192.25,20.80854031]
[1738858682364,5.30424056,192.26,192.25,20.80854031]
[1738858682569,0.10304056,192.26,192.25,20.80854031]
[1738858682870,0.10304056,192.26,192.25,33.76758691]
[1738858684885,0.10304056,192.26,192.25,47.68139544]
[1738858685183,0.10304056,192.26,192.25,33.76758691]
[1738858685961,0.10304056,192.26,192.25,47.68139544]
[1738858686475,0.11246087,192.27,192.26,13.66282853]
[1738858686679,0.11246087,192.27,192.26,84.39992305]
[1738858686680,0.00942031,192.27,192.26,84.39992305]
[1738858687567,0.00942031,192.27,192.26,34.15382761]
[1738858687784,33.77700722,192.27,192.17,33.83058691]
[1738858687981,33.76758691,192.21,192.17,0.063]
[1738858688467,33.76758691,192.22,192.17,0.063]
[1738858688663,20.0,192.18,192.17,0.063]
[1738858688975,53.76758691,192.18,192.17,0.063]
[1738858689573,58.97098691,192.18,192.17,0.063]
[1738858689982,33.76758691,192.21,192.17,0.063]
[1738858690293,5.2018,192.24,192.18,33.76758691]
[1738858690466,33.76758691,192.25,192.17,0.063]
[1738858690467,38.96878691,192.26,192.19,33.76758691]
[1738858690662,5.2012,192.26,192.17,0.063]
[1738858691099,0.00942031,192.27,192.21,0.12549]
[1738858691291,0.00942031,192.27,192.23,13.53733853]
[1738858691581,0.00942031,192.27,192.17,17.1667]
[1738858691895,0.00942031,192.27,192.21,33.76758691]
[1738858692069,0.03,192.26,192.22,33.76758691]
[1738858692263,0.10368665,192.23,192.22,33.76758691]
[1738858692896,0.10368665,192.23,192.22,47.30492544]
[1738858693075,0.10368665,192.23,192.2,33.76758691]
[1738858693275,0.10368665,192.23,192.19,33.76758691]
[1738858693691,0.10368665,192.23,192.2,47.30492544]
[1738858693891,0.10368665,192.23,192.22,33.76758691]
[1738858694069,0.10368665,192.23,192.21,33.76758691]
[1738858694396,0.10368665,192.23,192.19,33.76758691]
[1738858694593,0.10368665,192.23,192.18,33.76758691]
[1738858694811,0.10368665,192.23,192.19,33.76758691]
[1738858695289,0.10368665,192.23,192.17,25.36423853]
[1738858695488,0.10368665,192.23,192.2,33.76758691]
[1738858695668,0.10368665,192.23,192.19,33.76758691]
[1738858695871,0.10368665,192.23,192.18,33.76758691]
[1738858696285,5.30578665,192.23,192.17,47.36792544]
[1738858696668,39.07337356,192.23,192.17,0.063]
[1738858696871,33.76758691,192.19,192.17,0.063]
[1738858697600,33.76758691,192.2,192.17,0.063]
[1738858697786,33.76758691,192.19,192.17,0.063]
[1738858697981,5.2034,192.18,192.17,0.063]
[1738858698605,5.2031,192.19,192.17,0.063]
[1738858698775,38.97068691,192.19,192.17,0.063]
[1738858699680,33.76758691,192.18,192.17,0.063]
[1738858699869,38.97098691,192.18,192.17,0.063]
[1738858700691,5.2034,192.18,192.17,0.063]
[1738858700899,5.2029,192.2,192.17,0.063]
[1738858701073,38.97048691,192.2,192.17,0.063]
[1738858701402,33.76758691,192.18,192.17,0.063]
[1738858701996,38.97098691,192.18,192.17,0.063]
[1738858703806,33.76758691,192.19,192.17,0.063]
[1738858704607,33.76758691,192.18,192.17,0.063]
[1738858705923,38.97098691,192.18,192.17,0.063]
[1738858706415,33.76758691,192.21,192.17,0.063]
[1738858706806,33.76758691,192.2,192.17,0.063]
[1738858706979,33.76758691,192.19,192.17,0.063]
[1738858707789,38.97088691,192.19,192.17,0.063]
[1738858707993,33.76758691,192.18,192.17,0.063]
[1738858708219,33.76758691,192.19,192.17,0.063]
[1738858708389,38.96998691,192.22,192.17,0.063]
[1738858708592,33.87127356,192.23,192.17,33.83058691]
[1738858708794,0.10368665,192.23,192.18,33.76758691]
[1738858709018,0.10368665,192.23,192.21,33.89307691]
[1738858709186,0.10368665,192.23,192.2,13.41184853]
[1738858709386,0.10368665,192.23,192.22,48.55590544]
[1738858709591,0.10368665,192.23,192.22,47.30492544]
[1738858709837,0.10368665,192.23,192.22,52.88369544]
[1738858710230,0.10368665,192.23,192.22,53.88369544]
[1738858710590,0.10368665,192.23,192.22,52.75820544]
[1738858710798,0.10368665,192.23,192.22,48.30492544]
[1738858711003,0.10368665,192.23,192.22,48.68139544]
[1738858711203,0.10368665,192.23,192.22,53.88369544]
[1738858711511,7.582e-05,192.27,192.26,21.50196]
[1738858711698,4.346e-05,192.28,192.27,35.91380853]
[1738858711905,8.428e-05,192.29,192.28,15.91380853]
[1738858712215,4.733e-05,192.31,192.3,2.50196]
[1738858712416,0.09718183,192.32,192.31,2.50196]
[1738858712621,5.804e-05,192.33,192.32,15.91380853]
[1738858712828,5.22e-05,192.36,192.35,22.50196]
[1738858713116,7.945e-05,192.37,192.36,15.91380853]
[1738858713418,0.03,192.45,192.37,15.91380853]
[1738858713626,0.03,192.45,192.41,2.0]
[1738858713826,0.03,192.45,192.44,38.96398691]
[1738858714393,0.03,192.45,192.44,53.87779544]
[1738858714639,0.03,192.46,192.44,54.87779544]
[1738858714799,7.88421921,192.48,192.47,69.68139544]
[1738858715003,0.03,192.52,192.51,21.50196]
[1738858715236,0.03,192.52,192.51,68.68139544]
[1738858715536,0.03,192.52,192.51,67.68139544]
[1738858715934,0.03,192.52,192.51,72.87589544]
[1738858716128,0.03,192.52,192.51,73.87589544]
[1738858716318,0.03,192.52,192.51,67.68139544]
[1738858716499,33.76758691,192.59,192.51,67.68139544]
[1738858716500,20.97850771,192.59,192.53,0.12549]
[1738858716700,33.76758691,192.55,192.49,7.95141698]
[1738858716914,5.1923,192.59,192.49,13.91380853]
[1738858717132,33.76758691,192.52,192.49,13.78831853]
[1738858717313,33.76758691,192.53,192.49,0.25098]
[1738858717503,33.76758691,192.52,192.45,39.08758691]
[1738858717711,33.76758691,192.49,192.45,5.32]
[1738858717901,33.76758691,192.47,192.44,7.95141698]
[1738858718239,33.76758691,192.48,192.44,7.95141698]
[1738858718409,33.76758691,192.49,192.44,7.95141698]
[1738858718808,33.76758691,192.49,192.43,13.66282853]
[1738858719211,33.76758691,192.47,192.43,13.66282853]
[1738858719413,33.76758691,192.47,192.42,13.41184853]
[1738858719731,33.76758691,192.47,192.37,1.0]
[1738858719732,33.76758691,192.46,192.39,33.76758691]
[1738858719907,33.76758691,192.45,192.39,13.91380853]
[1738858720229,33.76758691,192.43,192.36,41.71900389]
[1738858720729,36.0644222,192.5,192.37,13.78831853]
[1738858720730,33.76758691,192.42,192.37,13.78831853]
[1738858720935,33.76758691,192.42,192.32,2.5392]
[1738858720936,33.76758691,192.39,192.33,33.76758691]
[1738858721169,33.76758691,192.38,192.31,47.03900389]
[1738858721433,33.76758691,192.39,192.33,33.76758691]
[1738858721634,33.76758691,192.39,192.34,13.66282853]
[1738858721810,33.76758691,192.37,192.32,0.12549]
[1738858722007,33.76758691,192.36,192.31,7.95141698]
[1738858722334,5.1978,192.39,192.27,39.08758691]
[1738858722335,33.76758691,192.34,192.27,39.08758691]
[1738858722559,33.76758691,192.33,192.27,5.32]
[1738858722757,33.76758691,192.33,192.28,13.53733853]
[1738858722966,33.76758691,192.31,192.27,5.32]
[1738858723134,33.76758691,192.3,192.27,5.32]
[1738858723954,33.76758691,192.3,192.22,33.76758691]
[1738858723955,33.76758691,192.28,192.22,33.76758691]
[1738858724256,38.96778691,192.3,192.23,33.76758691]
[1738858725066,33.76758691,192.3,192.24,13.78831853]
[1738858725267,33.76758691,192.34,192.27,33.76758691]
[1738858725439,33.76758691,192.34,192.28,33.76758691]
[1738858725861,20.0,192.34,192.28,33.76758691]
[1738858726060,33.76758691,192.32,192.24,0.25098]
[1738858726241,33.76758691,192.3,192.24,33.76758691]
[1738858727066,33.76758691,192.29,192.23,13.53733853]
[1738858727270,33.76758691,192.28,192.21,33.76758691]
[1738858727434,33.76758691,192.29,192.22,33.76758691]
[1738858727853,38.96788691,192.3,192.23,47.55590544]
[1738858728053,33.76758691,192.32,192.25,33.76758691]
[1738858728439,33.76758691,192.3,192.24,33.76758691]
[1738858728644,33.76758691,192.29,192.23,33.76758691]
[1738858729044,38.96818691,192.29,192.23,33.76758691]
[1738858729562,38.96778691,192.3,192.24,33.89307691]
[1738858729933,33.76758691,192.29,192.24,0.12549]
[1738858730169,33.76758691,192.28,192.22,33.76758691]
[1738858730467,33.76758691,192.27,192.2,33.76758691]
[1738858731140,33.76758691,192.29,192.22,33.76758691]
[1738858731560,33.76758691,192.31,192.24,33.76758691]
[1738858731862,33.76758691,192.31,192.21,5.45358]
[1738858731863,33.76758691,192.26,192.2,33.76758691]
[1738858732041,33.76758691,192.26,192.19,47.30492544]
[1738858732245,0.10094186,192.21,192.18,33.89307691]
[1738858732459,0.10094186,192.21,192.17,33.83058691]
[1738858732652,0.10094186,192.21,192.17,0.063]
[1738858733043,0.10094186,192.21,192.17,13.60033853]
[1738858733244,0.10094186,192.21,192.17,47.36792544]
[1738858733839,0.10094186,192.21,192.17,52.57162544]
[1738858734034,0.10094186,192.21,192.2,33.89307691]
[1738858734353,0.10094186,192.21,192.2,47.68139544]
[1738858735240,0.10094186,192.21,192.2,52.88429544]
[1738858735660,0.10094186,192.21,192.2,52.75880544]
[1738858735867,0.113671,192.22,192.2,39.22126691]
[1738858736217,0.113671,192.22,192.21,33.76758691]
[1738858736476,0.113671,192.22,192.17,0.063]
[1738858736477,39.08365791,192.22,192.17,0.063]
[1738858736841,5.316071,192.22,192.17,13.60033853]
[1738858737041,39.08365791,192.22,192.17,13.60033853]
[1738858737370,33.76758691,192.2,192.17,0.063]
[1738858739158,39.08365791,192.22,192.17,0.063]
[1738858739353,5.316071,192.22,192.17,33.83058691]
[1738858739560,39.08365791,192.22,192.17,0.063]
[1738858740281,33.76758691,192.21,192.17,0.063]
[1738858740658,33.76758691,192.2,192.17,0.063]
[1738858740961,33.76758691,192.18,192.17,0.063]
[1738858741475,38.97098691,192.18,192.17,0.063]
[1738858741990,33.76758691,192.2,192.17,0.063]
[1738858742485,33.76758691,192.19,192.17,0.063]
[1738858742694,33.76758691,192.2,192.17,0.063]
[1738858742887,5.2026,192.21,192.17,0.063]
[1738858743382,38.97018691,192.21,192.17,0.063]
[1738858743973,33.76758691,192.18,192.17,0.063]
[1738858744565,33.76758691,192.18,192.17,0.0001]
[1738858744869,82.1,192.17,192.13,0.063]
[1738858745074,53.76758691,192.14,192.13,0.0001]
[1738858745272,61.07281926,192.14,192.13,0.0001]
[1738858745594,20.0,192.1,192.07,0.063]
[1738858745797,33.76758691,192.08,192.07,0.063]
[1738858746093,34.74404424,192.08,192.07,0.063]
[1738858746391,36.26504424,192.08,192.07,0.063]
[1738858746568,33.76758691,192.03,192.02,0.063]
[1738858747160,41.8887826,192.16,192.02,0.063]
[1738858747161,33.76758691,192.06,192.02,0.063]
[1738858747591,33.76758691,192.03,192.02,0.063]
[1738858748663,33.89307691,192.03,192.01,7.95141698]
[1738858748865,33.89307691,192.03,191.97,0.063]
[1738858748866,20.0,191.99,191.97,0.063]
[1738858749086,33.76758691,191.98,191.97,0.063]
[1738858749492,38.97638691,191.98,191.97,0.063]
[1738858751074,39.95333966,191.98,191.97,0.063]
[1738858752287,39.95333966,191.98,191.93,0.063]
[1738858752288,20.0,191.95,191.93,0.063]
[1738858752509,34.74478055,191.94,191.93,0.063]
[1738858752788,33.76758691,191.87,191.86,0.063]
[1738858752973,33.76758691,191.88,191.86,0.063]
[1738858753292,33.76758691,191.87,191.86,0.063]
[1738858753469,38.97938691,191.87,191.86,0.063]
[1738858754790,33.76758691,191.91,191.86,0.063]
[1738858755097,38.97828691,191.92,191.86,0.063]
[1738858755274,5.2107,191.92,191.86,0.063]
[1738858755475,38.97938691,191.87,191.86,0.063]
[1738858755878,38.97938691,191.87,191.82,0.063]
[1738858755879,20.0,191.84,191.82,0.063]
[1738858757168,20.97767747,191.84,191.82,0.063]
[1738858757370,33.76758691,191.83,191.82,0.063]
[1738858757594,38.98048691,191.83,191.82,0.063]
[1738858758307,39.95818117,191.83,191.82,0.063]
[1738858758471,33.76758691,191.78,191.77,0.063]
[1738858759668,39.95984418,191.78,191.77,0.063]
[1738858760076,40.08533418,191.78,191.76,0.0001]
[1738858760289,33.76758691,191.77,191.76,0.0001]
[1738858761224,33.89307691,191.77,191.76,0.0001]
[1738858761507,67.53517382,191.72,191.71,0.0001]
[1738858761808,20.0,191.69,191.66,0.063]
[1738858762005,20.0,191.68,191.66,0.063]
[1738858762208,34.74621522,191.67,191.66,0.063]
[1738858762705,0.97862831,191.67,191.66,0.063]
[1738858762880,33.76758691,191.68,191.66,0.063]
[1738858763086,33.76758691,191.69,191.66,0.063]
[1738858763402,33.76758691,191.7,191.66,0.063]
[1738858763876,33.76758691,191.72,191.66,0.063]
[1738858764074,33.76758691,191.74,191.67,33.76758691]
[1738858764275,33.76758691,191.75,191.68,33.76758691]
[1738858764676,33.76758691,191.73,191.66,33.83058691]
[1738858764879,33.76758691,191.71,191.66,0.063]
[1738858765106,33.76758691,191.69,191.66,0.063]
[1738858765311,33.76758691,191.67,191.66,0.063]
[1738858765775,38.98488691,191.67,191.66,0.063]
[1738858766205,33.76758691,191.67,191.66,0.063]
[1738858766407,39.96337019,191.67,191.66,0.063]
[1738858766599,20.0,191.64,191.6,0.063]
[1738858766778,33.76758691,191.61,191.6,0.063]
[1738858767605,38.98648691,191.61,191.6,0.063]
[1738858768212,72.87956382,191.61,191.6,0.063]
[1738858768537,20.0,191.59,191.58,0.063]
[1738858768708,2.37647,191.58,191.56,0.0001]
[1738858768907,54.8723413,191.57,191.43,33.76758691]
[1738858769142,33.76758691,191.5,191.43,33.76758691]
[1738858769326,33.76758691,191.5,191.43,34.01856691]
[1738858769637,20.0,191.48,191.44,33.76758691]
[1738858769845,20.0,191.48,191.43,5.2236]
[1738858770014,20.0,191.48,191.43,38.99118691]
[1738858770407,38.98828691,191.55,191.47,33.76758691]
[1738858770621,38.98828691,191.55,191.43,5.2236]
[1738858770622,33.76758691,191.57,191.5,33.76758691]
[1738858770844,38.98698691,191.6,191.52,33.76758691]
[1738858771012,38.98698691,191.6,191.53,33.76758691]
[1738858771536,1.97882234,191.64,191.49,0.25098]
[1738858771537,33.76758691,191.56,191.49,33.76758691]
[1738858771716,33.76758691,191.54,191.48,33.76758691]
[1738858771911,33.76758691,191.52,191.45,38.99078691]
[1738858772136,20.0,191.47,191.44,5.32]
[1738858772440,20.0,191.45,191.4,6.3294]
[1738858772612,0.10412603,191.46,191.4,38.99218691]
[1738858772613,20.0,191.44,191.4,38.99218691]
[1738858772808,0.10412603,191.46,191.42,33.76758691]
[1738858773142,0.10412603,191.46,191.4,38.99218691]
[1738858773334,20.0,191.45,191.41,33.76758691]
[1738858773636,20.0,191.45,191.41,38.99178691]
[1738858774046,0.10412603,191.46,191.43,33.76758691]
[1738858774350,0.10412603,191.46,191.45,33.76758691]
[1738858774536,0.10412603,191.46,191.43,33.76758691]
[1738858774714,0.10412603,191.46,191.41,38.99178691]
[1738858774920,0.10412603,191.46,191.41,5.2242]
[1738858775336,0.10412603,191.46,191.42,13.66282853]
[1738858775643,0.10412603,191.46,191.43,33.76758691]
[1738858775835,0.10412603,191.46,191.44,33.76758691]
[1738858776527,0.10412603,191.46,191.45,33.76758691]
[1738858776844,0.10412603,191.46,191.45,47.43041544]
[1738858777012,0.10412603,191.46,191.45,47.17943544]
[1738858777548,0.10412603,191.46,191.44,33.76758691]
[1738858777932,0.10412603,191.46,191.45,33.76758691]
[1738858778625,0.10412603,191.46,191.43,33.76758691]
[1738858778953,33.76758691,191.44,191.38,33.76758691]
[1738858779711,33.76758691,191.44,191.37,33.76758691]
[1738858780027,33.76758691,191.44,191.38,33.76758691]
[1738858780223,20.0,191.42,191.38,33.76758691]
[1738858780423,20.0,191.41,191.36,33.76758691]
[1738858780620,33.76758691,191.4,191.33,33.76758691]
[1738858780950,33.76758691,191.39,191.32,33.76758691]
[1738858781141,33.76758691,191.38,191.31,33.76758691]
[1738858781461,33.76758691,191.39,191.32,33.76758691]
[1738858781631,20.0,191.37,191.33,33.76758691]
[1738858782252,20.0,191.36,191.32,33.76758691]
[1738858782615,20.0,191.36,191.31,33.76758691]
[1738858782941,20.0,191.35,191.31,33.76758691]
[1738858783240,20.0,191.35,191.3,33.76758691]
[1738858783414,20.0,191.35,191.29,5.2275]
[1738858783415,20.0,191.35,191.31,33.76758691]
[1738858784047,20.0,191.35,191.26,13.0711]
[1738858784048,53.76758691,191.34,191.26,33.76758691]
[1738858784231,53.76758691,191.34,191.26,38.99588691]
[1738858784742,33.76758691,191.31,191.24,33.76758691]
[1738858784945,33.76758691,191.32,191.25,33.76758691]
[1738858785718,33.76758691,191.36,191.29,33.76758691]
[1738858786032,20.0,191.33,191.29,33.76758691]
[1738858786231,20.0,191.33,191.25,13.41184853]
[1738858786232,20.0,191.33,191.28,33.76758691]
[1738858786456,33.76758691,191.33,191.26,33.76758691]
[1738858786759,20.0,191.32,191.31,0.03]
[1738858787553,5.2261,191.35,191.31,0.03]
[1738858787921,14.04262185,191.39,191.31,0.03]
[1738858787922,0.98022185,191.39,191.31,0.03]
[1738858788321,20.0,191.29,191.23,33.76758691]
[1738858788545,20.0,191.28,191.24,33.76758691]
[1738858788930,1.37647,191.36,191.26,33.76758691]
[1738858788931,20.0,191.3,191.26,33.76758691]
[1738858789958,33.76758691,191.34,191.27,33.76758691]
[1738858790147,33.76758691,191.36,191.29,33.76758691]
[1738858790326,33.76758691,191.32,191.25,33.76758691]
[1738858790530,0.98013551,191.35,191.24,33.76758691]
[1738858790531,33.76758691,191.3,191.24,33.76758691]
[1738858791268,0.98013551,191.35,191.28,33.76758691]
[1738858791269,33.76758691,191.35,191.28,33.76758691]
[1738858791429,33.76758691,191.35,191.24,13.41184853]
[1738858791430,20.0,191.31,191.27,33.76758691]
[1738858792153,33.76758691,191.3,191.23,33.76758691]
[1738858792362,0.09978353,191.28,191.23,33.76758691]
[1738858792869,0.09978353,191.28,191.22,33.76758691]
[1738858793741,5.32788353,191.28,191.22,33.76758691]
[1738858794256,5.32788353,191.28,191.23,33.76758691]
[1738858794453,5.32788353,191.28,191.22,33.76758691]
[1738858794626,5.32788353,191.28,191.22,21.00698302]
[1738858795031,26.33486655,191.28,191.22,21.00698302]
[1738858795964,26.33486655,191.28,191.19,13.41184853]
[1738858795965,26.33486655,191.28,191.21,21.00698302]
[1738858797238,26.33486655,191.28,191.22,21.00698302]
[1738858797441,21.00698302,191.27,191.21,21.00698302]
[1738858797864,21.00698302,191.27,191.15,4.12549]
[1738858797865,21.00698302,191.26,191.2,21.00698302]
[1738858798172,21.00698302,191.24,191.18,21.00698302]
[1738858798375,21.00698302,191.21,191.15,25.00698302]
[1738858798544,21.00698302,191.2,191.15,4.0]
[1738858799350,26.23728302,191.19,191.15,4.0]
[1738858799546,21.00698302,191.18,191.15,4.0]
[1738858800062,21.00698302,191.17,191.15,4.0]
[1738858800579,21.00698302,191.18,191.15,4.0]
[1738858800743,21.00698302,191.16,191.15,4.0]
[1738858801328,29.97581448,191.16,191.15,2.3334]
[1738858801485,29.97581448,191.16,191.07,0.03]
[1738858801486,20.0,191.13,191.07,0.03]
[1738858801783,21.00698302,191.08,191.07,0.03]
[1738858802576,21.00698302,191.11,191.07,0.03]
[1738858802782,0.98154997,191.1,191.07,0.03]
[1738858802964,0.98154997,191.13,191.07,0.03]
[1738858803348,5.231,191.17,191.07,0.03]
[1738858803546,20.0,191.14,191.07,0.03]
[1738858803972,34.19965728,191.12,191.07,0.03]
[1738858804165,34.19965728,191.11,191.07,0.03]
[1738858804487,34.19965728,191.1,191.07,0.03]